fUSD/lending_fUSD_20240804
["ID","MTS","AMOUNT","RATE_DAILY","PERIOD"]
[334177665,1722809441202,-500.0,0.00023013,9]
[334177667,1722809441212,-819.9,0.00023013,9]
[334177669,1722809441222,-248.8,0.00023013,9]
[334177671,1722809441232,-638.31,0.00023013,9]
[334177673,1722809441242,-500.0,0.00023013,9]
[334177675,1722809441251,-500.0,0.00023013,9]
[334177676,1722809441261,-624.62,0.00023013,9]
[334177678,1722809441270,-500.0,0.00023013,9]
[334177680,1722809441280,-500.0,0.00023013,9]
[334177682,1722809441290,-500.0,0.00023013,9]
[334177684,1722809441299,-690.56,0.00023013,9]
[334177686,1722809441309,-622.49,0.00023013,9]
[334177688,1722809441319,-500.0,0.00023013,9]
[334177689,1722809441328,-500.0,0.00023013,9]
[334177691,1722809441337,-500.0,0.00023013,9]
[334177693,1722809441346,-500.0,0.00023013,9]
[334177695,1722809441356,-892.94,0.00023013,9]
[334177697,1722809441365,-500.0,0.00023013,9]
[334177699,1722809441375,-1252.4,0.00023013,9]
[334177701,1722809441384,-500.0,0.00023013,9]
[334177703,1722809441393,-507.67,0.00023013,9]
[334177705,1722809441404,-500.0,0.00023013,9]
[334177706,1722809441414,-500.0,0.00023013,9]
[334177707,1722809441423,-945.27,0.00023013,9]
[334177708,1722809441432,-1062.31,0.00023013,9]
[334177709,1722809441442,-500.0,0.00023013,9]
[334177710,1722809441452,-522.36,0.00023013,9]
[334177711,1722809441462,-779.9,0.00023013,9]
[334177712,1722809441472,-500.0,0.00023013,9]
[334177713,1722809441481,-422.02113666,0.00023013,9]
[334177714,1722809441495,-318.81886334,0.00023013,9]
[334177715,1722809441504,-500.0,0.00023013,9]
[334177716,1722809441514,-1176.99,0.00023013,9]
[334177717,1722809441523,-500.0,0.00023013,9]
[334177718,1722809441533,-500.0,0.00023013,9]
[334177719,1722809441543,-500.0,0.00023013,9]
[334177720,1722809441554,-500.0,0.00023013,9]
[334177722,1722809441564,-131.22815727,0.00023013,9]
[334177751,1722809441842,-1034.74184273,0.00023013,9]
[334177753,1722809441852,-500.0,0.00023013,9]
[334177755,1722809441861,-500.0,0.00023013,9]
[334177757,1722809441871,-197.34,0.00023013,9]
[334177759,1722809441880,-500.0,0.00023013,9]
[334177761,1722809441890,-500.0,0.00023013,9]
[334177763,1722809441904,-500.89,0.00023013,9]
[334177765,1722809441914,-500.0,0.00023013,9]
[334177767,1722809441924,-500.0,0.00023013,9]
[334177769,1722809441933,-500.0,0.00023013,9]
[334177771,1722809441943,-500.0,0.00023013,9]
[334177773,1722809441953,-117.82815727,0.00023013,9]
[334177777,1722809441982,-382.17184273,0.00023013,9]
[334177779,1722809441992,-629.73,0.00023013,9]
[334177781,1722809442002,-687.49555178,0.00023013,9]
[334177784,1722809442015,-37.54444822,0.00023013,9]
[334177786,1722809442024,-500.0,0.00023013,9]
[334177788,1722809442034,-9.91890786,0.00023013,9]
[334177791,1722809442060,-385.19,0.00023013,9]
[334177796,1722809442091,-170.85109214,0.00023013,9]
[334177798,1722809442102,-657.73,0.00023013,9]
[334177800,1722809442112,-500.0,0.00023013,9]
[334177802,1722809442121,-500.0,0.00023013,9]
[334177804,1722809442131,-500.0,0.00023013,9]
[334177806,1722809442140,-500.0,0.00023013,9]
[334177808,1722809442154,-500.0,0.00023013,9]
[334177810,1722809442164,-500.0,0.00023013,9]
[334177812,1722809442174,-325.90515832,0.00023013,9]
[334177852,1722809443197,-342.05771685,0.00023003,2]
[334177855,1722809443215,-1477.73228315,0.00023003,2]
[334177856,1722809443225,-1402.15639868,0.00023003,2]
[334177857,1722809443432,-417.63360132,0.00023003,2]
[334177858,1722809443442,-1819.79,0.00023003,2]
[334177859,1722809443452,-1819.79,0.00023003,2]
[334177860,1722809443462,-1819.79,0.00023003,2]
[334177861,1722809443472,-174.09484168,0.00023013,9]
[334177862,1722809443482,-600.09,0.00023013,9]
[334177863,1722809443492,-1076.13,0.00023013,9]
[334177864,1722809443502,-585.23,0.00023013,9]
[334177865,1722809443513,-718.66,0.00023013,9]
[334177866,1722809443522,-500.0,0.00023013,9]
[334177867,1722809443532,-582.85,0.00023013,9]
[334177868,1722809443542,-500.0,0.00023013,9]
[334177869,1722809443552,-500.0,0.00023013,9]
[334177870,1722809443561,-564.06,0.00023013,9]
[334177871,1722809443571,-500.0,0.00023013,9]
[334177872,1722809443580,-1151.05,0.00023013,9]
[334177873,1722809443590,-1274.81,0.00023013,9]
[334177874,1722809443600,-500.0,0.00023013,9]
[334177875,1722809443609,-500.0,0.00023013,9]
[334177877,1722809443619,-500.0,0.00023013,9]
[334177879,1722809443629,-500.0,0.00023013,9]
[334177880,1722809443638,-695.88836351,0.00023013,9]
[334177882,1722809443665,-286.48163649,0.00023013,9]
[334177884,1722809443675,-765.27,0.00023013,9]
[334177885,1722809443685,-248.76704901,0.00023013,9]
[334177886,1722809443695,-49.2883974,0.00023013,9]
[334177887,1722809443718,-487.3816026,0.00023013,9]
[334177888,1722809443729,-783.94,0.00023013,9]
[334177889,1722809443741,-496.39307944,0.00023013,9]
[334177890,1722809443763,-3.60692056,0.00023013,9]
[334177891,1722809443773,-930.62,0.00023013,9]
[334177892,1722809443783,-53.66580097,0.00023013,9]
[334177893,1722809443795,-446.33419903,0.00023013,9]
[334177894,1722809443805,-500.0,0.00023013,9]
[334177895,1722809443816,-500.0,0.00023013,9]
[334177896,1722809443826,-323.98085408,0.00023013,9]
[334177897,1722809443836,-500.0,0.00023013,9]
[334177898,1722809443845,-65.49023734,0.00023013,9]
[334177904,1722809446661,-835.97661551,0.00023003,2]
[334177906,1722809528400,800.0,0.00026986,120]
[334177907,1722809647822,738.0,0.000159,2]
[334177908,1722809649273,-701.0,0.000159,2]
[334177909,1722809679925,-518.48697307,0.000159,2]
[334177910,1722809680615,-500.0,0.000159,2]
[334177911,1722809681225,-423.25838533,0.000159,2]
[334177915,1722809769876,800.0,0.00026986,120]
[334177917,1722810057510,302.36,0.00025465,120]
[334177918,1722810124143,552.34,0.00026986,120]
[334177919,1722810307984,150.0,0.00011,2]
[334177920,1722810308025,150.0,0.00011,2]
[334177921,1722810308081,150.0,0.00011,2]
[334177922,1722810308116,10561.0,0.00011,2]
[334177923,1722810319795,953.90027372,9e-05,2]
[334177924,1722810319838,934.26433994,9e-05,2]
[334177925,1722810321126,-508.18,0.00010959,2]
[334177926,1722810322521,-229.82,0.00011,2]
[334177927,1722810341845,2900.0,0.00027,120]
[334177929,1722810356136,2454.23566006,6.94e-05,2]
[334177930,1722810356172,3184.78699923,6.94e-05,2]
[334177931,1722810356206,3408.34340856,6.94e-05,2]
[334177932,1722810356239,3281.4588849,6.94e-05,2]
[334177933,1722810356272,3297.15495975,6.94e-05,2]
[334177934,1722810356304,3635.54866412,6.94e-05,2]
[334177935,1722810356336,3751.55116466,6.94e-05,2]
[334177936,1722810357079,-1078.96383304,0.0001,2]
[334177937,1722810363102,150.0,0.00025,120]
[334177940,1722810471598,491.19327112,0.000269,120]
[334177943,1722810488914,977.39488439,0.0002,90]
[334177945,1722810505818,-807.75664699,0.0001,2]
[334177946,1722810505853,-500.0,0.000104,3]
[334177947,1722810505886,-1000.0,0.000105,3]
[334177948,1722810505918,-1127.0,0.00010567,2]
[334177949,1722810505951,-300.0,0.00010599,2]
[334177950,1722810505985,-1500.0,0.000106,3]
[334177951,1722810506017,-1625.36704425,0.000106,2]
[334177952,1722810506057,-6860.12369124,0.000106,2]
[334177953,1722810506104,-5282.24878499,0.000106,2]
[334177954,1722810506139,-1577.87490625,0.000107,3]
[334177955,1722810506179,-522.12509375,0.000107,3]
[334177956,1722810506212,-2600.0,0.000108,3]
[334177957,1722810506414,-176.21753282,0.000109,2]
[334177958,1722810506450,-500.0,0.000109,3]
[334177959,1722810506488,-230.73972161,0.000109,2]
[334177960,1722810506526,-911.09,0.000109,2]
[334177961,1722810506565,-176.76776976,0.000109,2]
[334177962,1722810506604,-499.99,0.00010959,2]
[334177963,1722810506642,-1243.1935733,0.00010959,2]
[334177964,1722810506684,-423.6164267,0.00010959,2]
[334177965,1722810506723,-508.17,0.00010959,2]
[334177966,1722810506761,-150.0,0.00010989,2]
[334177967,1722810506800,-1540.32408795,0.0001099,2]
[334178003,1722810632498,-169.56146874,0.000103,2]
[334178005,1722810632507,-300.0,0.00010899,2]
[334178007,1722810632517,-60.43853126,0.000109,2]
[334178008,1722810632529,-2087.42508181,0.000109,2]
[334178009,1722810632538,-2147.86361307,0.000109,2]
[334178010,1722810632547,-190.65596199,0.000109,2]
[334178011,1722810632556,-153.82648106,0.000109,2]
[334178012,1722810632566,-169.51300804,0.000109,2]
[334178013,1722810632575,-1706.01,0.0001098,2]
[334178014,1722810632585,-1706.01,0.0001098,2]
[334178015,1722810632594,-1706.01,0.0001098,2]
[334178016,1722810632603,-1706.01,0.0001098,2]
[334178017,1722810632613,-1706.01,0.0001098,2]
[334178018,1722810632622,-1706.01,0.00010989,2]
[334178019,1722810632631,-1706.01,0.00010989,2]
[334178020,1722810632641,-1706.01,0.00010989,2]
[334178021,1722810632650,-1706.01,0.00010989,2]
[334178022,1722810632659,-1706.01,0.00010989,2]
[334178023,1722810632669,-1706.01,0.00010989,2]
[334178024,1722810632678,-1706.01,0.00010989,2]
[334178025,1722810632694,-1706.01,0.00010989,2]
[334178026,1722810632703,-1706.01,0.00010989,2]
[334178027,1722810632712,-1706.01,0.00010989,2]
[334178028,1722810632723,-1706.01,0.00010989,2]
[334178029,1722810632732,-1706.01,0.00010989,2]
[334178030,1722810632742,-155.0,0.0001099,2]
[334178031,1722810632751,-215.65287238,0.0001099,2]
[334178032,1722810632760,-790.61891375,0.0001099,2]
[334178033,1722810632769,-221.90073506,0.0001099,2]
[334178034,1722810632778,-300.0,0.0001099,2]
[334178035,1722810632788,-126.5882789,0.0001099,2]
[334178036,1722810632807,-74.32480445,0.0001099,2]
[334178037,1722810632817,-227.61995131,0.0001099,2]
[334178038,1722810632826,-57.22057126,0.0001099,2]
[334178039,1722810632852,-442.77942874,0.0001099,2]
[334178040,1722810632861,-1049.98025387,0.0001099,2]
[334178041,1722810632870,-412.78856276,0.0001099,2]
[334178042,1722810632880,-21.38212269,0.0001099,2]
[334178043,1722810632907,-3351.46930057,0.0001099,2]
[334178044,1722810632919,-938.70191065,0.0001099,2]
[334178045,1722810632928,-495.72143925,0.0001099,2]
[334178046,1722810632948,-2081.08675534,0.0001099,2]
[334178047,1722810632961,-17803.12265724,0.0001099,2]
[334178048,1722810632971,-155.50533946,0.0001099,2]
[334178049,1722810632981,-170.33874759,0.0001099,2]
[334178050,1722810632990,-449.14284782,0.0001099,2]
[334178051,1722810632999,-961.890584,0.0001099,2]
[334178052,1722810633008,-18829.20746285,0.0001099,2]
[334178053,1722810633018,-161.81,0.0001099,2]
[334178054,1722810633028,-1706.01,0.0001099,2]
[334178055,1722810633037,-1706.01,0.0001099,2]
[334178056,1722810633046,-1607.35414194,0.00010997,2]
[334178057,1722810633055,-60296.35372344,0.00010999,2]
[334178058,1722810633064,-190.13862121,0.00010999,2]
[334178059,1722810633075,-83099.01405926,0.00011,2]
[334178060,1722810633087,-1180.85005427,0.00011,2]
[334178061,1722810634949,-670.2429723,0.0001099,2]
[334178122,1722810638295,-343.17055141,0.000109,2]
[334178123,1722810638306,-833.10944859,0.0001099,2]
[334178124,1722810638323,-202.65757911,0.0001099,2]
[334178125,1722810638333,-1706.01,0.0001099,2]
[334178126,1722810638343,-1706.01,0.0001099,2]
[334178127,1722810638356,-1706.01,0.0001099,2]
[334178128,1722810638367,-1706.01,0.0001099,2]
[334178129,1722810638377,-1706.01,0.0001099,2]
[334178130,1722810638387,-1706.01,0.0001099,2]
[334178131,1722810638397,-4017.54408224,0.0001099,2]
[334178133,1722810639699,-965.47893929,0.0001099,2]
[334178135,1722810639712,-1847.5486376,0.0001099,2]
[334178138,1722810639729,-989.93674359,0.0001099,2]
[334178140,1722810639741,-1698.03970922,0.0001099,2]
[334178142,1722810639754,-9310.65935091,0.0001099,2]
[334178143,1722810639764,-1706.01,0.0001099,2]
[334178145,1722810639775,-1706.01,0.0001099,2]
[334178147,1722810639784,-1706.01,0.0001099,2]
[334178149,1722810639794,-1706.01,0.0001099,2]
[334178151,1722810639804,-1965.52250889,0.00011,2]
[334178153,1722810639816,-464.58898707,0.00011,2]
[334178155,1722810639827,-638.89389986,0.00011,2]
[334178157,1722810639839,-2372.49092263,0.00011,2]
[334178159,1722810639851,-3586.07606684,0.00011,2]
[334178161,1722810639863,-725.59635263,0.00011,2]
[334178163,1722810639875,-19177.27197511,0.00011,2]
[334178172,1722810639967,-2388.94041669,0.00011,2]
[334178174,1722810639978,-4787.01676865,0.00011,2]
[334178252,1722810640543,-5966.59176036,0.00011,2]
[334178256,1722810640554,-16230.36064973,0.00011,2]
[334178259,1722810640566,-4853.09999989,0.00011,2]
[334178262,1722810640577,-1331.9993965,0.00011,2]
[334178265,1722810640589,-2434.77846422,0.00011,2]
[334178274,1722810640640,-304.30466539,0.00011,2]
[334178276,1722810640652,-10066.03213401,0.00011,2]
[334178278,1722810640663,-11193.40144984,0.00011,2]
[334178282,1722810640700,-3455.58653241,0.00011,2]
[334178284,1722810640712,-647.526547,0.00011,2]
[334178286,1722810640723,-739.70005,0.00011,2]
[334178292,1722810640775,-787.49974601,0.00011,2]
[334178300,1722810640846,-1191.68749297,0.00011,2]
[334178302,1722810640858,-2913.44500019,0.00011,2]
[334178304,1722810640869,-1681.25,0.00011,2]
[334178318,1722810641011,-870.40681196,0.00011,2]
[334178321,1722810641023,-815.0,0.00011,2]
[334178323,1722810641034,-11129.60899707,0.00011,2]
[334178325,1722810641045,-2936.09948492,0.00011,2]
[334178327,1722810641064,-1113.52729043,0.00011,2]
[334178329,1722810641075,-421.4603123,0.00011,2]
[334178330,1722810641086,-760.11591725,0.00011,2]
[334178331,1722810641097,-401.71205352,0.00011,2]
[334178332,1722810641108,-3333.99104239,0.00011,2]
[334178333,1722810641125,-5373.59318804,0.00011,2]
[334178334,1722810641137,-5198.16634652,0.00011,2]
[334178335,1722810641184,-450.0,0.00011,2]
[334178400,1722810642679,-309.47685997,0.00011,2]
[334178402,1722810643245,-150.0,0.00011,2]
[334178417,1722810643457,-450.0,0.00011,2]
[334178421,1722810643504,-1724.39081037,0.00011,2]
[334178422,1722810643634,-404.34576589,0.00011,2]
[334178423,1722810643670,-37754.20863898,0.00011,2]
[334178424,1722810643681,-67194.83001274,0.00011,2]
[334178428,1722810644317,-656.86101804,0.00011,2]
[334178429,1722810644336,-2838.14685996,0.00011,2]
[334178430,1722810644486,-150.0,0.00011,2]
[334178431,1722810645131,-150.0,0.00011,2]
[334178434,1722810646671,-560.55412405,0.00011,2]
[334178435,1722810646724,-2923.48756817,0.00011,2]
[334178436,1722810646736,-7767.81612531,0.00011,2]
[334178437,1722810646748,-655.28,0.00011,2]
[334178438,1722810646759,-450.0,0.00011,2]
[334178439,1722810646772,-300.0,0.00011,2]
[334178440,1722810646881,-450.0,0.00011,2]
[334178441,1722810646927,-1687.98110194,0.00011,2]
[334178495,1722810654555,-700.0,0.000104,3]
[334178496,1722810656926,-1058.78383304,0.000105,3]
[334178497,1722810657568,-341.21616696,0.000105,3]
[334178498,1722810659318,-166.96383304,0.000106,3]
[334178499,1722810660856,-450.0,0.000106,3]
[334178500,1722810662731,-454.30466539,0.000106,3]
[334178501,1722810663987,800.0,0.00026986,120]
[334178502,1722810664127,-459.47685997,0.000106,3]
[334178503,1722810665869,-150.0,0.000106,3]
[334178504,1722810789758,800.0,0.00026986,120]
[334178505,1722810903382,800.0,0.00026986,120]
[334178506,1722811108813,768.29,8.219e-05,2]
[334178507,1722811124303,-250.0,9.83e-05,2]
[334178508,1722811169825,-227.61995131,9.83e-05,2]
[334178509,1722811169846,-574.68891551,9.83e-05,2]
[334178510,1722811171171,-227.61995131,9.83e-05,2]
[334178511,1722811195499,-870.30351334,9.83e-05,2]
[334178512,1722811209325,800.0,0.00026986,120]
[334178513,1722811227440,-91.58707066,9.83e-05,2]
[334178514,1722811227463,-517.88978931,9.83e-05,2]
[334178515,1722811227937,-517.88978931,9.83e-05,2]
[334178516,1722811230296,-882.11021069,9.746e-05,2]
[334178517,1722811231647,-619.26978931,9.746e-05,2]
[334178518,1722811295398,150.43,7.713e-05,2]
[334178520,1722811329430,2570.89891576,7.713e-05,2]
[334178521,1722811338449,291.39045799,7.713e-05,2]
[334178522,1722811350136,557.246841,9.349e-05,2]
[334178523,1722811380826,1865.87335349,7.713e-05,2]
[334178524,1722811385503,227.61995131,9.349e-05,2]
[334178525,1722811497510,227.61995131,9.349e-05,2]
[334178526,1722811522582,23900.0,9.514e-05,2]
[334178527,1722811541357,460.41,9.535e-05,2]
[334178528,1722811578714,485.65,9.526e-05,2]
[334178529,1722811599763,227.61995131,9.514e-05,2]
[334178530,1722811693775,-168.16,9.57e-05,2]
[334178531,1722811693799,-327.63,9.593e-05,2]
[334178532,1722811693820,-1512.12,9.6e-05,2]
[334178533,1722811693845,-3755.56,9.6e-05,2]
[334178534,1722811693866,-19462.53,9.62e-05,2]
[334178535,1722811697029,-17162.46260448,9.62e-05,2]
[334178536,1722811697050,-496.89,9.621e-05,2]
[334178537,1722811697071,-200.0,9.621e-05,2]
[334178538,1722811697093,-500.0,9.652e-05,2]
[334178539,1722811697114,-304.55,9.67e-05,2]
[334178540,1722811697137,-746.02,9.692e-05,2]
[334178541,1722811703497,227.61995131,9.514e-05,2]
[334178543,1722811713637,250.0,9.749e-05,2]
[334178544,1722811720535,112.45744421,9.514e-05,2]
[334178545,1722811720558,115.1625071,9.514e-05,2]
[334178546,1722811731839,-150.0,0.00010098,2]
[334178547,1722811731880,-4148.23106855,0.00010099,2]
[334178548,1722811731921,-2290.81409504,0.00010099,2]
[334178549,1722811736310,5289.41488354,9.514e-05,2]
[334178550,1722811764414,764.91,8.219e-05,2]
[334178551,1722811777429,155.0,9.514e-05,2]
[334178552,1722811806498,227.61995131,9.514e-05,2]
[334178581,1722811832054,-156.99277092,9.999e-05,2]
[334178583,1722811832066,-63.46590496,0.00010099,2]
[334178585,1722811832076,-159.12,0.00010127,2]
[334178587,1722811832086,-179.02,0.00010148,2]
[334178589,1722811832096,-159.12,0.00010177,2]
[334178591,1722811832106,-3145.53,0.00010184,2]
[334178593,1722811832116,-218.80983518,0.00010184,2]
[334178596,1722811832141,-371.27016482,0.00010184,2]
[334178598,1722811832150,-300.0,0.00010189,2]
[334178600,1722811832159,-44.91858184,0.00010288,2]
[334178602,1722811832172,-955.08141816,0.00010288,2]
[334178604,1722811832182,-499.99,0.00010288,2]
[334178606,1722811832191,-156.9927709,0.00010299,2]
[334178608,1722811832201,-1000.0,0.000104,3]
[334178610,1722811832210,-764.91,0.00010464,2]
[334178611,1722811832219,-2100.0,0.000105,3]
[334178612,1722811832229,-158.11,0.00010586,2]
[334178613,1722811832238,-156.9927709,0.000106,2]
[334178614,1722811832248,-754.94528854,0.000106,2]
[334178615,1722811832260,-53.24571146,0.000106,2]
[334178616,1722811832269,-3200.0,0.000106,3]
[334178617,1722811832279,-48.25428854,0.000107,3]
[334178618,1722811832290,-3244.55441955,0.000107,3]
[334178619,1722811832302,-1007.19129191,0.000107,3]
[334178620,1722811832311,-460.41,0.00010727,2]
[334178621,1722811832322,-327.63,0.00010793,2]
[334178622,1722811832332,-3306.15364066,0.000108,3]
[334178623,1722811832343,-505.38615579,0.000108,3]
[334178624,1722811832355,-826.29867666,0.000108,3]
[334178625,1722811832384,-641.43342479,0.000108,3]
[334178626,1722811832396,-20.7281021,0.000108,3]
[334178627,1722811832406,-171.5565115,0.000109,2]
[334178628,1722811832415,-174.24752067,0.000109,2]
[334178629,1722811832425,-46.08121699,0.000109,3]
[334178630,1722811832437,-953.91878301,0.000109,3]
[334178631,1722811832446,-190.65596198,0.000109,2]
[334178632,1722811832455,-156.9927709,0.000109,2]
[334178633,1722811832465,-517.66602487,0.000109,2]
[334178634,1722811832479,-463.80340462,0.000109,2]
[334178635,1722811832488,-259.64448878,0.000109,2]
[334178636,1722811832498,-250.0,0.00010959,2]
[334178637,1722811832507,-2000.0,0.00010959,2]
[334178638,1722811832516,-296.99,0.00010959,2]
[334178639,1722811832526,-247.5,0.00010959,2]
[334178640,1722811832539,-206.25,0.00010959,2]
[334178641,1722811832549,-171.87,0.00010959,2]
[334178642,1722811832558,-859.38,0.00010959,2]
[334178643,1722811832568,-5284.68118634,0.0001099,2]
[334178644,1722811832580,-262.81,0.0001099,2]
[334178645,1722811832589,-262.81,0.0001099,2]
[334178646,1722811832599,-209.42742903,0.00010997,2]
[334178647,1722811832608,-26710.97320912,0.00011,2]
[334178648,1722811832621,-3112.3427,0.00011,2]
[334178649,1722811832632,-324.47998558,0.00011,2]
[334178650,1722811832659,-17711.44816338,0.00011,2]
[334178651,1722811832670,-850.40212826,0.00011,2]
[334178652,1722811832681,-619.14994573,0.00011,2]
[334178654,1722811837579,-262.81,0.0001099,2]
[334178655,1722811837589,-262.81,0.0001099,2]
[334178656,1722811837599,-262.81,0.0001099,2]
[334178657,1722811837609,-262.81,0.0001099,2]
[334178658,1722811837621,-262.81,0.0001099,2]
[334178659,1722811837630,-262.81,0.0001099,2]
[334178660,1722811837640,-262.81,0.0001099,2]
[334178661,1722811837649,-262.81,0.0001099,2]
[334178662,1722811837659,-262.81,0.0001099,2]
[334178663,1722811837668,-262.81,0.0001099,2]
[334178664,1722811837678,-262.81,0.0001099,2]
[334178665,1722811837687,-121.91778986,0.0001099,2]
[334178666,1722811837781,-140.89221014,0.0001099,2]
[334178667,1722811837791,-262.81,0.0001099,2]
[334178668,1722811837801,-262.81,0.0001099,2]
[334178669,1722811837810,-262.81,0.0001099,2]
[334178670,1722811837823,-262.81,0.0001099,2]
[334178671,1722811837833,-262.81,0.0001099,2]
[334178672,1722811837843,-262.81,0.0001099,2]
[334178673,1722811837852,-262.81,0.0001099,2]
[334178674,1722811837861,-262.81,0.0001099,2]
[334178675,1722811837871,-262.81,0.0001099,2]
[334178676,1722811837881,-262.81,0.0001099,2]
[334178677,1722811837891,-262.81,0.0001099,2]
[334178688,1722811838159,-262.81,0.0001099,2]
[334178690,1722811838172,-2617.57094905,0.00011,2]
[334178692,1722811838184,-38509.96513952,0.00011,2]
[334178827,1722811839575,-262.81,0.0001099,2]
[334178830,1722811839586,-11418.27845864,0.00011,2]
[334178832,1722811839598,-1700.0,0.00011,2]
[334178835,1722811839609,-1614.66000032,0.00011,2]
[334178866,1722811839858,-262.81,0.0001099,2]
[334178867,1722811839868,-262.81,0.0001099,2]
[334178869,1722811839877,-5701.81,0.00011,2]
[334178871,1722811839888,-360.2445,0.00011,2]
[334178883,1722811840004,-262.81,0.0001099,2]
[334178885,1722811840015,-695.575,0.00011,2]
[334178891,1722811840074,-400.0,0.00011,2]
[334178894,1722811840085,-4864.05036268,0.00011,2]
[334178922,1722811840369,-3500.0,0.00011,2]
[334179144,1722811842629,-579.54803453,0.00011,2]
[334179146,1722811842641,-279.92356222,0.00011,2]
[334179148,1722811842653,-1149.07228572,0.00011,2]
[334179150,1722811842664,-380.42039115,0.00011,2]
[334179152,1722811842676,-3772.43083344,0.00011,2]
[334179154,1722811842687,-29539.95738463,0.00011,2]
[334179156,1722811842698,-2314.14804842,0.00011,2]
[334179162,1722811842754,-8081.28438641,0.00011,2]
[334179165,1722811842765,-3767.59533793,0.00011,2]
[334179167,1722811842776,-8338.88494153,0.00011,2]
[334179169,1722811842788,-476.0530325,0.00011,2]
[334179173,1722811842823,-500.0,0.00011,2]
[334179176,1722811842835,-2383.28505014,0.00011,2]
[334179248,1722811843612,-42382.22406133,0.00011,2]
[334179250,1722811843627,-10270.63071939,0.00011,2]
[334179252,1722811843639,-16831.65284,0.00011,2]
[334179253,1722811843650,-11345.9185728,0.00011,2]
[334179432,1722811846342,-2654.94895016,0.00011,2]
[334179434,1722811846355,-1739.33815026,0.00011,2]
[334179436,1722811846367,-861.89995876,0.00011,2]
[334179439,1722811846379,-1400.55359634,0.00011,2]
[334179441,1722811846391,-631.37538617,0.00011,2]
[334179443,1722811846403,-12039.85870987,0.00011,2]
[334179447,1722811846433,-538443.97501471,0.00011,2]
[334179448,1722811846445,-4919.07120143,0.00011,2]
[334179450,1722811846457,-8329.05580018,0.00011,2]
[334179451,1722811846469,-6600.09774282,0.00011,2]
[334179453,1722811846485,-2179.41794027,0.00011,2]
[334179456,1722811846496,-722.50830479,0.00011,2]
[334179459,1722811846516,-1222.58142477,0.00011,2]
[334179461,1722811846528,-1753.85498398,0.00011,2]
[334179463,1722811846543,-6769.77585128,0.00011,2]
[334179465,1722811846555,-1185.57,0.00011,2]
[334179467,1722811846566,-948.90000057,0.00011,2]
[334179469,1722811846581,-347.83,0.00011,2]
[334179471,1722811846593,-404.48230813,0.00011,2]
[334179474,1722811846604,-1104.91332322,0.00011,2]
[334179476,1722811846621,-841.45106896,0.00011,2]
[334179477,1722811846634,-729.12371714,0.00011,2]
[334179478,1722811846646,-136478.51443228,0.00011,2]
[334179821,1722811871474,800.0,0.00026986,120]
[334179822,1722811922003,-150.0,0.00010999,2]
[334179823,1722811922051,-1326.06147973,0.00011,2]
[334179824,1722811922114,-4036.76255733,0.00011,2]
[334179825,1722811922185,-3849.17891239,0.00011,2]
[334179826,1722811922268,-4661.06,0.00011,2]
[334179827,1722811922368,-4384.93,0.00011,2]
[334179828,1722811922474,-1029.02,0.00011,2]
[334179829,1722811922643,-4486.19942889,0.00011,2]
[334179830,1722811922722,-4444.33852027,0.00011,2]
[334179832,1722812213639,-300.0,9.898e-05,2]
[334179833,1722812229347,-447.00619686,9.899e-05,2]
[334179836,1722812303455,1000.0,0.00025,60]
[334179837,1722812523844,800.0,0.00026986,120]
[334179838,1722812649174,800.0,0.00026986,120]
[334179839,1722812751037,759.38,9.064e-05,2]